bitfinex-derivatives/quotes_BTCF0:USTF0_20240830
["timestamp","ask_amount","ask_price","bid_price","bid_amount"]
[1725031393241,0.145778,58287.0,58286.0,0.3608]
[1725031393558,0.145778,58287.0,58283.0,0.3]
[1725031393559,0.085782,58284.0,58283.0,0.3]
[1725031393749,0.205782,58284.0,58283.0,0.35971235]
[1725031393936,0.12,58284.0,58283.0,0.44549635]
[1725031394132,0.00025715,58292.0,58283.0,1.500504]
[1725031394339,0.07260706,58300.0,58291.0,0.7216]
[1725031394542,0.07260706,58300.0,58299.0,0.74656]
[1725031394944,0.07260706,58300.0,58299.0,0.8060152]
[1725031395537,0.00025715,58305.0,58304.0,0.085753]
[1725031395747,0.11025715,58305.0,58304.0,0.746553]
[1725031395947,0.00025715,58305.0,58304.0,2.0063212]
[1725031396144,0.00025715,58305.0,58304.0,1.9205682]
[1725031396341,0.00025715,58305.0,58304.0,0.7202552]
[1725031396543,0.00025715,58305.0,58304.0,1.9205682]
[1725031397349,0.00025715,58305.0,58304.0,0.83749141]
[1725031397543,0.00025715,58305.0,58304.0,0.75173841]
[1725031398448,0.01025715,58305.0,58304.0,0.3608]
[1725031398651,0.00025715,58305.0,58304.0,0.7202552]
[1725031398951,0.00025715,58305.0,58304.0,1.9205682]
[1725031399543,0.004,58333.0,58304.0,2.33135263]
[1725031399754,0.215713,58331.0,58330.0,0.6608]
[1725031400055,0.215713,58331.0,58330.0,0.7202552]
[1725031400244,0.13,58331.0,58330.0,0.72886014]
[1725031400444,0.215713,58331.0,58330.0,0.7202552]
[1725031400847,0.215713,58331.0,58330.0,0.3608]
[1725031401852,1.330033,58331.0,58330.0,0.3608]
[1725031402158,0.17144,58326.0,58325.0,0.00025715]
[1725031402349,0.17144,58326.0,58314.0,0.05121972]
[1725031402350,0.085736,58315.0,58314.0,0.05121972]
[1725031402652,0.195736,58315.0,58314.0,0.05121972]
[1725031402841,1.395912,58315.0,58314.0,0.05121972]
[1725031403049,0.195736,58315.0,58314.0,0.05121972]
[1725031403552,1.310176,58315.0,58314.0,0.05121972]
[1725031404852,1.42630469,58315.0,58314.0,0.05121972]
[1725031405350,0.171488,58310.0,58309.0,0.06855011]
[1725031405554,0.171506,58304.0,58299.0,0.3608]
[1725031405741,0.702306,58304.0,58303.0,0.08071108]
[1725031405943,1.62316735,58304.0,58288.0,0.085775]
[1725031406145,0.085771,58292.0,58288.0,0.1452302]
[1725031406341,0.085771,58292.0,58288.0,0.0594552]
[1725031406342,0.085773,58291.0,58288.0,0.0594552]
[1725031406549,0.085773,58291.0,58285.0,0.4553587]
[1725031406550,0.085774,58290.0,58285.0,0.4553587]
[1725031406750,0.12,58290.0,58288.0,0.085776]
[1725031408357,0.12,58290.0,58289.0,0.385775]
[1725031408755,0.00025715,58295.0,58294.0,0.085767]
[1725031408955,0.05025715,58295.0,58294.0,0.3608]
[1725031409261,0.13602315,58295.0,58294.0,0.3608]
[1725031409455,0.13602315,58295.0,58291.0,0.085771]
[1725031409659,0.13602315,58295.0,58294.0,0.3608]
[1725031409847,0.13602315,58295.0,58291.0,0.3608]
[1725031409848,0.085771,58292.0,58291.0,0.3608]
[1725031410054,0.06,58292.0,58291.0,0.3608]
[1725031411162,0.14577,58292.0,58291.0,0.3608]
[1725031411751,0.085776,58289.0,58285.0,0.3608]
[1725031411963,0.215776,58289.0,58285.0,0.4202552]
[1725031412161,0.085779,58286.0,58285.0,0.3608]
[1725031412349,0.18,58292.0,58285.0,1.54360908]
[1725031412553,0.00025715,58295.0,58294.0,0.085767]
[1725031412762,0.01025715,58295.0,58294.0,0.746567]
[1725031412951,0.00025715,58295.0,58294.0,0.8060222]
[1725031413352,0.00025715,58295.0,58294.0,0.81464407]
[1725031414160,0.00025715,58295.0,58294.0,1.32928407]
[1725031414354,0.00025715,58295.0,58294.0,1.92928407]
[1725031414555,0.3608,58312.0,58294.0,0.75357038]
[1725031414757,0.08575,58306.0,58303.0,0.6608]
[1725031414951,0.11,58306.0,58303.0,0.7202552]
[1725031415165,0.11,58306.0,58305.0,0.085751]
[1725031415365,0.09973649,58329.0,58308.0,0.3608]
[1725031415564,0.12,58329.0,58328.0,0.6608]
[1725031416073,0.12,58329.0,58328.0,0.69512906]
[1725031419356,0.12,58329.0,58328.0,0.3608]
[1725031419552,0.12,58329.0,58328.0,0.39512906]
[1725031420050,0.00025715,58334.0,58328.0,0.39512906]
[1725031420051,0.04983397,58333.0,58330.0,0.085714]
[1725031420265,0.05009112,58334.0,58331.0,0.6608]
[1725031420462,0.00025715,58334.0,58331.0,0.6608]
[1725031420670,0.00025715,58334.0,58331.0,0.69512906]
[1725031420857,0.04183397,58341.0,58332.0,0.51428]
[1725031421050,0.3608,58363.0,58340.0,0.6608]
[1725031421051,0.04976405,58347.0,58340.0,0.6608]
[1725031421260,0.04976405,58347.0,58346.0,0.746491]
[1725031421261,0.13,58347.0,58346.0,0.746491]
[1725031421857,0.13,58347.0,58346.0,0.6608]
[1725031422162,0.13,58347.0,58346.0,0.3608]
[1725031422462,0.13,58347.0,58346.0,1.260651]
[1725031422660,0.13,58347.0,58346.0,1.17496]
[1725031423461,0.00025715,58352.0,58346.0,1.17496]
[1725031423664,0.00025715,58352.0,58346.0,0.3]
[1725031423864,0.08594015,58352.0,58351.0,0.3608]
[1725031424370,0.00025715,58352.0,58351.0,0.3608]
[1725031424558,0.05025715,58352.0,58351.0,0.3608]
[1725031424961,0.05025715,58352.0,58351.0,0.6608]
[1725031425162,0.05025715,58352.0,58351.0,1.17492]
[1725031425357,0.04976405,58362.0,58361.0,0.085669]
[1725031425557,0.03926896,58373.0,58361.0,0.7216]
[1725031425764,0.12,58373.0,58372.0,0.7216]
[1725031426660,0.12,58373.0,58372.0,0.3608]
[1725031426862,0.205651,58373.0,58372.0,0.3608]
[1725031427266,0.12,58373.0,58372.0,0.3608]
[1725031427763,0.205651,58373.0,58372.0,0.3608]
[1725031427963,0.085659,58368.0,58367.0,0.00025715]
[1725031428161,0.205659,58368.0,58367.0,0.00025715]
[1725031428963,0.291318,58368.0,58367.0,0.00025715]
[1725031429160,1.851777,58368.0,58367.0,1.5e-07]
[1725031429365,0.085684,58351.0,58350.0,0.3608]
[1725031429776,0.135684,58351.0,58350.0,0.3608]
[1725031429971,0.085698,58341.0,58331.0,0.3]
[1725031430172,0.085704,58338.0,58331.0,0.30863905]
[1725031430363,0.085706,58336.0,58335.0,0.3608]
[1725031430558,0.205706,58336.0,58335.0,0.3608]
[1725031431365,0.085714,58330.0,58329.0,0.36105715]
[1725031431573,0.07,58330.0,58329.0,0.00025715]
[1725031433366,0.155714,58330.0,58329.0,0.00025715]
[1725031437266,0.155714,58330.0,58329.0,1.5e-07]
[1725031437267,1.202262,58330.0,58329.0,1.5e-07]
[1725031437473,1.802262,58330.0,58329.0,1.5e-07]
[1725031437875,1.86846807,58330.0,58329.0,1.5e-07]
[1725031438183,1.802262,58330.0,58329.0,1.5e-07]
[1725031438568,1.802262,58330.0,58314.0,0.085738]
[1725031438569,0.085736,58316.0,58314.0,0.085738]
[1725031438774,0.085736,58315.0,58314.0,0.09414106]
[1725031439171,0.085736,58315.0,58313.0,0.29764032]
[1725031439172,0.085738,58314.0,58313.0,0.29764032]
[1725031439486,0.195738,58314.0,58313.0,0.29764032]
[1725031440077,0.085745,58309.0,58308.0,0.00025715]
[1725031440374,0.195745,58309.0,58308.0,0.00025715]
[1725031440686,0.11,58309.0,58308.0,0.44680415]
[1725031440976,0.11,58309.0,58308.0,0.36105715]
[1725031441182,0.11,58309.0,58308.0,0.36976463]
[1725031441385,0.195745,58309.0,58308.0,0.36976463]
[1725031441573,0.36105715,58319.0,58308.0,0.36976463]
[1725031441574,0.00025715,58319.0,58308.0,0.36105715]
[1725031441881,0.0667524,58339.0,58338.0,0.085703]
[1725031442181,0.0661524,58351.0,58342.0,0.3]
[1725031442382,0.0661524,58351.0,58338.0,0.7216]
[1725031442383,0.02,58351.0,58350.0,0.3]
[1725031442581,0.105684,58351.0,58350.0,0.3]
[1725031442782,0.02,58351.0,58350.0,0.3]
[1725031443382,1.13412,58351.0,58345.0,0.00025715]
[1725031443688,0.085691,58346.0,58345.0,0.00025715]
[1725031443878,0.215691,58346.0,58345.0,0.00025715]
[1725031444077,0.13,58346.0,58345.0,0.00025715]
[1725031445483,0.215691,58346.0,58345.0,0.00025715]
[1725031445679,0.13,58346.0,58345.0,0.00025715]
[1725031446098,0.13,58346.0,58345.0,0.08594915]
[1725031446889,0.13,58346.0,58345.0,0.00025715]
[1725031447273,0.13,58346.0,58345.0,0.08594915]
[1725031448288,0.085662,58366.0,58345.0,0.00025715]
[1725031448590,0.07,58366.0,58364.0,0.3608]
[1725031450185,0.07,58366.0,58365.0,0.085663]
[1725031450386,0.07,58366.0,58364.0,0.3608]
[1725031450691,0.08567,58360.0,58359.0,0.00025715]
[1725031450877,0.51647,58360.0,58359.0,0.00025715]
[1725031451075,0.15567,58360.0,58359.0,0.00025715]
[1725031451287,0.07,58360.0,58359.0,0.00025715]
[1725031452085,0.15567,58360.0,58359.0,0.00025715]
[1725031452386,0.07,58360.0,58359.0,0.00025715]
[1725031453788,0.09480198,58360.0,58359.0,0.08592915]
[1725031453996,0.07,58360.0,58359.0,0.08592915]
[1725031454896,0.07,58360.0,58359.0,0.00025715]
[1725031455695,0.07,58360.0,58359.0,0.08592915]
[1725031457482,0.07,58360.0,58359.0,0.00025715]
[1725031457689,0.07,58360.0,58359.0,0.08592915]
[1725031462289,0.13,58366.0,58365.0,0.085663]
[1725031462501,0.11,58366.0,58365.0,1.346126]
[1725031462696,0.1006965,58382.0,58381.0,0.08564]
[1725031462896,0.09973649,58382.0,58381.0,1.10724]
[1725031463196,0.09973649,58382.0,58381.0,0.6608]
[1725031463394,0.10973649,58382.0,58381.0,0.3608]
[1725031463695,0.19537449,58382.0,58381.0,0.3608]
[1725031464096,0.19537449,58382.0,58381.0,0.6608]
[1725031464585,0.095638,58382.0,58381.0,0.3608]
[1725031464791,0.12016951,58382.0,58381.0,0.3608]
[1725031464986,0.03453151,58382.0,58381.0,0.6608]
[1725031465392,0.01,58382.0,58381.0,0.6608]
[1725031466393,0.01,58382.0,58381.0,1.0216]
[1725031468617,0.085645,58377.0,58376.0,0.00025715]
[1725031468794,0.085645,58377.0,58365.0,0.66936141]
[1725031468795,0.085662,58366.0,58365.0,0.37044141]
[1725031468997,0.12,58366.0,58365.0,0.66936141]
[1725031469707,0.04,58366.0,58365.0,0.66936141]
[1725031470099,0.135662,58366.0,58365.0,0.66936141]
[1725031470403,0.05,58366.0,58365.0,0.66936141]
[1725031470601,0.135662,58366.0,58365.0,0.66936141]
[1725031470803,0.135662,58366.0,58365.0,0.3608]
[1725031471607,0.16048216,58366.0,58365.0,0.3608]
[1725031471904,0.135662,58366.0,58365.0,0.3608]
[1725031472106,0.05,58366.0,58365.0,0.3608]
[1725031472499,0.05,58366.0,58365.0,0.369377]
[1725031473901,0.05,58366.0,58365.0,1.483377]
[1725031474100,0.05,58366.0,58365.0,0.883377]
[1725031474297,0.05,58366.0,58365.0,1.483377]
[1725031475806,0.135662,58366.0,58365.0,1.483377]
[1725031476008,0.135662,58366.0,58365.0,0.619377]
[1725031477105,0.221324,58366.0,58365.0,0.619377]
[1725031477808,0.171338,58361.0,58360.0,0.00025715]
[1725031478011,0.722676,58361.0,58360.0,1.5e-07]
[1725031478202,2.22529182,58361.0,58360.0,1.5e-07]
[1725031478402,2.25838641,58361.0,58360.0,1.5e-07]
[1725031478714,2.25838641,58361.0,58337.0,0.004]
[1725031478715,0.171394,58342.0,58322.0,0.08556292]
[1725031479007,0.085723,58324.0,58313.0,0.3608]
[1725031479213,0.085744,58310.0,58309.0,0.3608]
[1725031479418,0.085748,58307.0,58301.0,0.3608]
[1725031479715,0.135748,58307.0,58306.0,0.3608]
[1725031480008,0.13588117,58307.0,58306.0,0.6608]
[1725031481401,0.13588117,58307.0,58298.0,0.00025715]
[1725031481402,0.08576,58299.0,58298.0,0.00025715]
[1725031481603,0.085753,58305.0,58298.0,0.00025715]
[1725031481907,0.135753,58305.0,58304.0,0.3]
[1725031482103,0.0502153,58305.0,58304.0,0.30871738]
[1725031482308,0.0002153,58305.0,58304.0,0.30871738]
[1725031482502,0.0002153,58305.0,58304.0,0.82327738]
[1725031483303,0.0002153,58305.0,58304.0,0.30871738]
[1725031483714,0.0002153,58305.0,58304.0,0.32833332]
[1725031486410,0.0502153,58305.0,58304.0,0.32833332]
[1725031487212,0.0502153,58305.0,58304.0,0.30871738]
[1725031487512,0.1359663,58305.0,58304.0,0.00871738]
[1725031487806,0.1359663,58305.0,58299.0,0.3]
[1725031487807,0.085753,58304.0,58299.0,0.3]
[1725031488014,0.195753,58304.0,58299.0,0.3]
[1725031488209,0.11,58304.0,58302.0,0.3608]
[1725031489508,0.085754,58303.0,58302.0,0.3608]
[1725031489715,0.12,58303.0,58302.0,0.3608]
[1725031490910,0.205754,58303.0,58302.0,0.3608]
[1725031491123,0.2059693,58303.0,58302.0,0.3608]
[1725031491324,0.20591834,58303.0,58302.0,0.3608]
[1725031491533,0.20588245,58303.0,58302.0,0.3608]
[1725031492531,0.205754,58303.0,58302.0,0.3608]
[1725031492720,0.12019472,58303.0,58302.0,0.3608]
[1725031493133,0.20594872,58303.0,58302.0,0.3608]
[1725031493327,1.32050872,58303.0,58302.0,0.3608]
[1725031493528,0.17152,58299.0,58298.0,0.00025715]
[1725031493830,0.20576,58299.0,58298.0,0.0089781]
[1725031494020,0.20576,58299.0,58298.0,0.00025715]
[1725031494623,0.3,58294.0,58264.0,0.42925034]
[1725031494829,0.08290872,58292.0,58277.0,0.3608]
[1725031495022,0.3,58287.0,58277.0,0.3608]
[1725031495227,0.42,58287.0,58271.0,0.0001679]
[1725031495430,0.3608,58282.0,58271.0,0.0001679]
[1725031495731,0.085789,58280.0,58271.0,0.08622527]
[1725031495932,0.13,58280.0,58277.0,0.3608]
[1725031496127,0.13,58280.0,58271.0,0.00042527]
[1725031496726,0.13,58280.0,58275.0,0.3608]
[1725031496923,0.215789,58280.0,58275.0,0.3608]
[1725031497128,0.13,58280.0,58275.0,0.3608]
[1725031497332,0.215789,58280.0,58275.0,0.3608]
[1725031497535,0.215789,58280.0,58275.0,0.36933778]
[1725031497536,0.13,58280.0,58275.0,0.36933778]
[1725031497728,0.085794,58276.0,58275.0,0.3608]
[1725031497934,0.1716,58272.0,58271.0,0.00025737]
[1725031498131,0.3016,58272.0,58271.0,0.00896076]
[1725031498332,1.41644,58272.0,58271.0,1e-08]
[1725031498535,0.73064,58272.0,58271.0,1e-08]
[1725031498735,1.41644,58272.0,58271.0,1e-08]
[1725031499131,0.73064,58272.0,58271.0,1e-08]
[1725031499735,0.2158,58272.0,58271.0,1e-08]
[1725031500338,1.66644,58272.0,58271.0,1e-08]
[1725031500539,1.75239283,58272.0,58271.0,1e-08]
[1725031500841,0.085831,58251.0,58242.0,0.3608]
[1725031501028,0.085842,58243.0,58242.0,0.3608]
[1725031501340,0.49093139,58243.0,58235.0,0.3608]
[1725031501526,0.49093139,58243.0,58234.0,0.3608]
[1725031501728,0.05,58243.0,58234.0,0.3608]
[1725031502029,0.3608,58239.0,58234.0,0.3608]
[1725031502237,0.00014665,58238.0,58233.0,0.00025737]
[1725031502435,0.085856,58234.0,58233.0,0.00025737]
[1725031502634,0.21604156,58234.0,58233.0,0.00025737]
[1725031502828,0.13018556,58234.0,58233.0,0.3696206]
[1725031503131,0.73120156,58234.0,58233.0,0.36105737]
[1725031503331,0.81701791,58234.0,58233.0,0.36105737]
[1725031503640,0.816872,58234.0,58233.0,0.00025737]
[1725031503841,0.215856,58234.0,58233.0,0.00025737]
[1725031504038,0.21601356,58234.0,58233.0,0.25025737]
[1725031504242,0.21601356,58234.0,58233.0,0.00025737]
[1725031504243,0.13015756,58234.0,58233.0,0.00025737]
[1725031504628,0.13015756,58234.0,58233.0,0.36105737]
[1725031504935,0.3694,58265.0,58233.0,0.62022868]
[1725031505242,0.01935872,58268.0,58264.0,0.3608]
[1725031505441,0.3608,58278.0,58264.0,0.3608]
[1725031505736,0.3608,58268.0,58252.0,0.3608]
[1725031505940,0.3608,58263.0,58254.0,0.00025737]
[1725031506127,0.00025737,58266.0,58262.0,0.3]
[1725031506329,5.774e-05,58265.0,58262.0,0.3]
[1725031506536,0.12,58265.0,58257.0,0.3]
[1725031506842,0.205811,58265.0,58257.0,0.6608]
[1725031507328,0.3608,58258.0,58257.0,0.3]
[1725031507532,0.3608,58258.0,58254.0,0.00025737]
[1725031507533,0.085825,58255.0,58254.0,0.00025737]
[1725031507731,0.12,58255.0,58254.0,0.00025737]
[1725031507933,0.12,58255.0,58254.0,0.08608337]
[1725031508439,0.12,58255.0,58254.0,0.00025737]
[1725031508636,0.12,58255.0,58254.0,0.09449399]
[1725031508840,5.774e-05,58258.0,58256.0,0.085823]
[1725031509032,0.05005774,58258.0,58257.0,0.3608]
[1725031509230,0.05005774,58258.0,58257.0,0.446622]
[1725031510046,0.05005774,58258.0,58257.0,0.3608]
[1725031510947,0.085825,58255.0,58254.0,0.00025737]
[1725031511136,1.176625,58255.0,58254.0,0.00025737]
[1725031511334,0.13,58255.0,58254.0,0.00025737]
[1725031511535,0.13005774,58255.0,58254.0,0.36105737]
[1725031512044,1.33088274,58255.0,58254.0,0.00025737]
[1725031512233,0.13005774,58255.0,58254.0,0.36105737]
[1725031512633,0.23577463,58255.0,58254.0,0.00025737]
[1725031512840,0.75077463,58255.0,58254.0,0.00025737]
[1725031513047,0.085841,58244.0,58243.0,0.3608]
[1725031513355,0.085845,58242.0,58235.0,0.3608]
[1725031513539,0.085847,58240.0,58235.0,0.36931194]
[1725031513737,0.11,58240.0,58235.0,0.36931194]
[1725031513932,5.774e-05,58239.0,58235.0,0.36931194]
[1725031514146,0.12005774,58239.0,58237.0,0.3]
[1725031514442,5.774e-05,58239.0,58238.0,0.3608]
[1725031514635,5.774e-05,58239.0,58238.0,0.44665]
[1725031516546,0.11005774,58239.0,58238.0,0.3608]
[1725031516935,0.085859,58232.0,58231.0,0.00046286]
[1725031517139,0.205859,58232.0,58231.0,0.00025737]
[1725031517546,0.806918,58232.0,58231.0,0.00025737]
[1725031517747,0.721059,58232.0,58231.0,0.00025737]
[1725031518049,0.806918,58232.0,58231.0,0.00025737]
[1725031518945,1.681859,58232.0,58231.0,0.00025737]
[1725031519344,1.78798222,58232.0,58231.0,0.00025737]
[1725031519543,0.085882,58216.0,58215.0,0.6608]
[1725031519856,0.085882,58216.0,58215.0,0.3608]
[1725031519857,0.195882,58216.0,58215.0,0.3608]
[1725031520341,0.19593974,58216.0,58215.0,0.3608]
[1725031520539,0.195882,58216.0,58215.0,0.3608]
[1725031521049,0.01987399,58223.0,58215.0,1.9216]
[1725031521345,0.2559,58257.0,58228.0,0.085865]
[1725031521549,0.2859,58257.0,58255.0,0.3]
[1725031521740,0.2859,58257.0,58251.0,0.3608]
[1725031521941,0.2859,58257.0,58245.0,0.3608]
[1725031521942,0.085829,58253.0,58245.0,0.3608]
[1725031522152,0.11,58253.0,58248.0,0.00025761]
[1725031522351,0.085829,58252.0,58248.0,0.00025761]
[1725031522647,0.635,58252.0,58248.0,0.00025761]
[1725031522848,0.51504,58251.0,58248.0,0.00025761]
[1725031523153,0.12,58251.0,58250.0,0.3608]
[1725031523847,0.05,58251.0,58250.0,0.3608]
[1725031524445,0.565,58251.0,58250.0,0.3608]
[1725031524646,1.165,58251.0,58250.0,0.3608]
[1725031525561,0.085833,58250.0,58248.0,0.00025761]
[1725031525850,0.710873,58250.0,58248.0,0.00025761]
[1725031526148,0.51504,58249.0,58248.0,0.00025761]
[1725031526348,0.62504,58249.0,58248.0,0.00025761]
[1725031526550,1.22504,58249.0,58248.0,0.00025761]
[1725031527749,1.24471472,58249.0,58248.0,0.00025761]
[1725031527948,1.39040817,58249.0,58231.0,0.44666]
[1725031528143,0.3608,58238.0,58231.0,0.3608]
[1725031528352,0.12,58238.0,58231.0,0.3608]
[1725031528559,0.12,58238.0,58236.0,0.3608]
[1725031528747,0.3,58237.0,58219.0,0.3608]
[1725031528948,0.3,58237.0,58222.0,0.0001735]
[1725031528949,0.3608,58228.0,58222.0,0.0001735]
[1725031529147,0.566665,58228.0,58222.0,0.0001735]
[1725031529351,0.085869,58225.0,58222.0,0.0001735]
[1725031529651,0.205869,58225.0,58222.0,0.0001735]
[1725031529845,0.721109,58225.0,58222.0,0.0001735]
[1725031530041,0.601111,58224.0,58222.0,0.0001735]
[1725031530246,0.981411,58224.0,58222.0,0.0001735]
[1725031530453,0.51528,58223.0,58222.0,0.0001735]
[1725031530645,0.63528,58223.0,58222.0,0.0001735]
[1725031531656,1.23528,58223.0,58222.0,0.0001735]
[1725031531856,1.25472989,58223.0,58222.0,0.0001735]
[1725031532056,1.61552989,58223.0,58214.0,0.05110225]
[1725031532246,0.6608,58215.0,58214.0,0.05110225]
[1725031532450,0.866684,58215.0,58214.0,0.05110225]
[1725031532650,1.982004,58215.0,58214.0,0.05110225]
[1725031533155,0.08589,58211.0,58198.0,0.46347551]
[1725031533357,0.085898,58205.0,58198.0,0.10267551]
[1725031533557,0.085907,58199.0,58198.0,0.10267551]
[1725031533746,0.3,58194.0,58184.0,0.00852771]
[1725031533951,0.3,58194.0,58186.0,0.3608]
[1725031533952,0.12,58194.0,58186.0,0.3608]
[1725031534152,0.12,58194.0,58193.0,0.3608]
[1725031535360,0.05,58194.0,58193.0,0.3608]
[1725031535557,0.05,58194.0,58193.0,0.36955454]
[1725031537146,0.05,58194.0,58193.0,0.3608]
[1725031538654,0.05,58194.0,58193.0,0.446716]
[1725031538853,0.11,58194.0,58193.0,1.562236]
[1725031539054,0.085882,58216.0,58193.0,1.47632]
[1725031539350,0.05025761,58207.0,58206.0,0.3608]
[1725031539660,0.05025761,58207.0,58196.0,0.3608]
[1725031539661,0.05025761,58207.0,58201.0,0.3608]
[1725031540050,0.3,58202.0,58195.0,0.3608]
[1725031540251,0.3,58202.0,58190.0,0.36188]
[1725031540252,0.3608,58200.0,58190.0,0.3608]
[1725031540459,0.4608,58200.0,58190.0,0.3608]
[1725031540664,0.1,58200.0,58190.0,0.3608]
[1725031540958,0.085913,58196.0,58194.0,0.3608]
[1725031541165,0.185913,58196.0,58194.0,0.3608]
[1725031541459,0.1,58196.0,58194.0,0.3608]
[1725031542459,0.1,58196.0,58188.0,0.36929918]
[1725031542460,0.085922,58189.0,58188.0,0.36929918]
[1725031542664,0.185922,58189.0,58188.0,0.36929918]
[1725031543762,0.1,58189.0,58188.0,0.36929918]
[1725031544065,0.701482,58189.0,58182.0,0.3608]
[1725031544257,0.185922,58189.0,58176.0,0.3608]
[1725031544460,0.085937,58179.0,58176.0,0.3608]
[1725031544653,0.185937,58179.0,58176.0,0.3608]
[1725031544861,0.185937,58179.0,58176.0,0.36957102]
[1725031545055,0.1,58179.0,58176.0,0.36957102]
[1725031545561,0.1,58179.0,58176.0,0.3608]
[1725031545867,0.319026,58187.0,58176.0,0.3608]
[1725031546063,0.085934,58182.0,58181.0,0.3608]
[1725031546273,0.380909,58189.0,58181.0,0.3608]
[1725031546563,0.106032,58189.0,58188.0,0.3608]
[1725031546767,0.106032,58189.0,58186.0,0.3608]
[1725031546768,0.020109,58189.0,58186.0,0.3608]
[1725031546953,0.085927,58186.0,58181.0,0.3608]
[1725031547157,0.01959738,58194.0,58184.0,0.085929]
[1725031547466,0.01959738,58194.0,58193.0,0.3608]
[1725031547467,0.00025761,58194.0,58193.0,0.3608]
[1725031547860,0.00025761,58194.0,58193.0,0.446716]
[1725031548659,0.00025761,58194.0,58193.0,0.3608]
[1725031549857,0.00025761,58194.0,58193.0,0.446716]
[1725031551171,0.00025761,58194.0,58193.0,0.746716]
[1725031551381,0.00025761,58194.0,58193.0,1.262236]
[1725031552058,0.00025761,58194.0,58193.0,0.746716]
[1725031552273,0.00025761,58194.0,58188.0,0.3]
[1725031552466,0.00025761,58194.0,58193.0,0.3608]
[1725031552766,0.00025761,58194.0,58183.0,0.01607708]
[1725031552767,0.36105761,58194.0,58183.0,0.01607708]
[1725031552974,0.3608,58186.0,58173.0,0.36188]
[1725031553163,0.3608,58186.0,58173.0,0.3608]
[1725031553365,0.085928,58185.0,58179.0,0.3608]
[1725031553559,0.085928,58185.0,58180.0,0.3608]
[1725031553767,0.3,58192.0,58180.0,0.3608]
[1725031553975,0.00096001,58193.0,58191.0,0.3608]
[1725031554281,0.00025761,58194.0,58192.0,0.3]
[1725031554667,0.00025761,58194.0,58193.0,0.085916]
[1725031555068,0.00025761,58194.0,58191.0,0.3608]
[1725031555774,0.00025761,58194.0,58193.0,0.385916]
[1725031556075,0.00025761,58194.0,58192.0,0.085917]
[1725031556374,0.00025761,58194.0,58191.0,0.3608]
[1725031556776,0.00025761,58194.0,58191.0,0.446719]
[1725031556963,0.00025761,58194.0,58193.0,0.085916]
[1725031557366,0.00025761,58194.0,58191.0,0.3608]
[1725031557763,0.00025761,58194.0,58193.0,0.085916]
[1725031558271,0.00025761,58194.0,58191.0,0.3608]
[1725031558475,0.06637934,58194.0,58191.0,0.3608]
[1725031558969,0.15203973,58192.0,58191.0,0.3608]
[1725031559172,0.15230182,58192.0,58191.0,0.3608]
[1725031559371,0.085918,58192.0,58191.0,0.3608]
[1725031559570,0.06638696,58192.0,58191.0,0.3608]
[1725031559771,0.06664457,58194.0,58191.0,0.3608]
[1725031559978,0.06639203,58194.0,58191.0,0.446718]
[1725031560181,0.06639203,58195.0,58192.0,0.085917]
[1725031560679,0.04979138,58194.0,58193.0,0.085916]
[1725031561069,0.04979075,58194.0,58193.0,0.085916]
[1725031561274,0.06639203,58197.0,58193.0,0.085916]
[1725031561582,0.00025761,58199.0,58196.0,0.6608]
[1725031561772,0.00025761,58199.0,58198.0,0.085909]
[1725031562276,0.00025761,58199.0,58198.0,0.601389]
[1725031562472,0.01579444,58208.0,58199.0,0.085907]
[1725031562473,0.04979638,58204.0,58199.0,0.085907]
[1725031562778,0.4163493,58228.0,58199.0,0.085907]
[1725031562779,0.03794997,58213.0,58212.0,0.085888]
[1725031562982,0.085863,58230.0,58212.0,1.2608]
[1725031563180,0.3608,58231.0,58225.0,0.3608]
[1725031563379,0.085867,58226.0,58225.0,0.3608]
[1725031563577,0.6608,58230.0,58220.0,0.3608]
[1725031563578,0.085875,58221.0,58220.0,0.3608]
[1725031563882,0.085882,58216.0,58215.0,0.00025761]
[1725031564180,0.085869,58225.0,58215.0,0.00025761]
[1725031564484,0.00025761,58231.0,58221.0,0.3608]
[1725031564678,0.36105761,58231.0,58222.0,0.3608]
[1725031564881,0.085872,58223.0,58222.0,0.3608]
[1725031565071,0.36105761,58231.0,58222.0,0.3608]
[1725031565072,0.085862,58230.0,58222.0,0.3608]
[1725031565279,0.00025761,58231.0,58224.0,0.3]
[1725031565579,0.00025761,58231.0,58229.0,0.3608]
[1725031565967,0.085862,58230.0,58229.0,0.3608]
[1725031566277,0.00025761,58231.0,58229.0,0.3608]
[1725031566578,0.46052797,58256.0,58230.0,0.5152]
[1725031566786,0.3608,58256.0,58246.0,0.6608]
[1725031567173,0.085837,58247.0,58234.0,0.3608]
[1725031567371,0.085854,58235.0,58234.0,0.3608]
[1725031567577,0.072854,58235.0,58234.0,0.3608]
[1725031568182,0.085857,58233.0,58229.0,0.00025761]
[1725031568483,0.085853,58236.0,58234.0,0.001]
[1725031568673,0.00025761,58240.0,58234.0,0.001]
[1725031568870,0.085849,58239.0,58234.0,0.001]
[1725031569080,0.00025761,58240.0,58234.0,0.001]
[1725031569081,0.085854,58235.0,58234.0,0.001]
[1725031569384,0.085854,58235.0,58232.0,0.3608]
[1725031569385,0.085857,58233.0,58232.0,0.3608]
[1725031569780,0.601017,58233.0,58232.0,0.3608]
[1725031570082,0.601017,58233.0,58229.0,0.00025761]
[1725031570083,0.085862,58230.0,58229.0,0.00025761]
[1725031570385,0.471724,58230.0,58229.0,0.00025761]
[1725031570682,0.00088,58232.0,58229.0,0.36105761]
[1725031570872,0.00088,58233.0,58229.0,0.36105761]
[1725031571072,0.085862,58230.0,58229.0,0.00025761]
[1725031571385,0.099857,58233.0,58232.0,0.001]
[1725031571683,0.171724,58230.0,58229.0,0.00025761]
[1725031571875,0.532524,58230.0,58229.0,0.00025761]
[1725031572075,1.647724,58230.0,58229.0,0.00025761]
[1725031572478,0.085878,58219.0,58208.0,0.38943707]